fUST/lending_fUST_20241220
["ID","MTS","AMOUNT","RATE_DAILY","PERIOD"]
[346087186,1734696651668,-273.34510962,0.00023561,6]
[346087187,1734696651677,-500.0,0.00023561,6]
[346087188,1734696651687,-624.6,0.00023561,6]
[346087189,1734696651697,-1066.62,0.00023561,6]
[346087190,1734696651706,-500.0,0.00023561,6]
[346087191,1734696651715,-500.0,0.00023561,6]
[346087192,1734696651724,-500.0,0.00023561,6]
[346087193,1734696651733,-500.0,0.00023561,6]
[346087194,1734696651743,-500.0,0.00023561,6]
[346087195,1734696651757,-184.16588913,0.00023561,6]
[346087196,1734696651768,-500.0,0.00023561,6]
[346087197,1734696651777,-500.0,0.00023561,6]
[346087198,1734696651786,-573.48,0.00023561,6]
[346087199,1734696651796,-594.63,0.00023561,6]
[346087200,1734696651805,-278.80828944,0.00023561,6]
[346087201,1734696651815,-1223.06,0.00023561,6]
[346087202,1734696651824,-500.0,0.00023561,6]
[346087203,1734696651834,-862.06,0.00023561,6]
[346087204,1734696651844,-500.0,0.00023561,6]
[346087205,1734696651853,-500.0,0.00023561,6]
[346087206,1734696651863,-500.0,0.00023561,6]
[346087207,1734696651873,-546.13,0.00023561,6]
[346087208,1734696651882,-500.0,0.00023561,6]
[346087209,1734696651891,-500.0,0.00023561,6]
[346087210,1734696651901,-527.84,0.00023561,6]
[346087211,1734696651911,-516.81,0.00023561,6]
[346087212,1734696651921,-500.0,0.00023561,6]
[346087213,1734696651930,-500.0,0.00023561,6]
[346087214,1734696651940,-500.0,0.00023561,6]
[346087215,1734696651949,-500.0,0.00023561,6]
[346087216,1734696651958,-941.11,0.00023561,6]
[346087217,1734696651968,-14147.83,0.00023561,6]
[346087218,1734696651977,-168.01163184,0.00023561,6]
[346087219,1734696651987,-953.74,0.00023561,6]
[346087220,1734696651997,-682.29,0.00023561,6]
[346087221,1734696652013,-500.0,0.00023561,6]
[346087222,1734696652023,-5770.18,0.00023561,6]
[346087223,1734696652034,-1060.09,0.00023561,6]
[346087224,1734696652044,-573.88,0.00023561,6]
[346087225,1734696652053,-6762.45,0.00023561,6]
[346087226,1734696652063,-4797.48,0.00023561,6]
[346087227,1734696652072,-924.05,0.00023561,6]
[346087228,1734696652081,-500.0,0.00023561,6]
[346087229,1734696652091,-870.44,0.00023561,6]
[346087230,1734696652100,-3409.0,0.00023561,6]
[346087231,1734696652110,-898.75,0.00023561,6]
[346087232,1734696652119,-500.0,0.00023561,6]
[346087233,1734696652129,-500.0,0.00023561,6]
[346087234,1734696652138,-566.16,0.00023561,6]
[346087235,1734696652148,-500.0,0.00023561,6]
[346087236,1734696652157,-500.0,0.00023561,6]
[346087237,1734696652166,-476.3004014,0.00023561,6]
[346087238,1734696652176,-1864.08,0.00023561,6]
[346087239,1734696652185,-500.0,0.00023561,6]
[346087240,1734696652195,-761.76,0.00023561,6]
[346087241,1734696652204,-500.0,0.00023561,6]
[346087242,1734696652214,-500.0,0.00023561,6]
[346087243,1734696652223,-1471.1,0.00023561,2]
[346087244,1734696652233,-500.0,0.00023561,6]
[346087245,1734696652242,-500.0,0.00023561,6]
[346087246,1734696652256,-500.0,0.00023561,6]
[346087247,1734696652265,-814.54,0.00023561,6]
[346087248,1734696652275,-746.22,0.00023561,6]
[346087249,1734696652285,-1421.1,0.00023561,6]
[346087250,1734696652294,-500.0,0.00023561,6]
[346087251,1734696652303,-500.0,0.00023561,6]
[346087252,1734696652312,-1161.42,0.00023561,6]
[346087253,1734696652321,-532.95,0.00023561,6]
[346087254,1734696652330,-921.31,0.00023561,6]
[346087255,1734696652340,-1840.22,0.00023561,6]
[346087256,1734696652349,-500.0,0.00023561,6]
[346087257,1734696652359,-179.53477046,0.00023561,6]
[346087258,1734696652369,-500.0,0.00023561,6]
[346087259,1734696652378,-2044.55,0.00023561,6]
[346087260,1734696652387,-500.0,0.00023561,6]
[346087261,1734696652397,-500.0,0.00023561,6]
[346087262,1734696652405,-500.0,0.00023561,6]
[346087263,1734696652414,-856.97,0.00023561,6]
[346087264,1734696652423,-2432.22,0.00023561,6]
[346087265,1734696652433,-500.0,0.00023561,6]
[346087266,1734696652442,-500.0,0.00023561,6]
[346087267,1734696652452,-500.0,0.00023561,6]
[346087268,1734696652462,-3509.96,0.00023561,6]
[346087269,1734696652471,-500.0,0.00023561,6]
[346087270,1734696652481,-389.88976331,0.00023561,6]
[346087271,1734696652491,-974.17,0.00023561,6]
[346087272,1734696652503,-500.0,0.00023561,6]
[346087273,1734696652512,-500.0,0.00023835,6]
[346087274,1734696652521,-500.0,0.00023835,6]
[346087275,1734696652530,-500.0,0.00023835,6]
[346087276,1734696652539,-353.11366102,0.00023835,6]
[346087277,1734696652548,-500.0,0.00023835,6]
[346087278,1734696652557,-850.23,0.00023835,6]
[346087279,1734696652567,-500.0,0.00023835,6]
[346087280,1734696652577,-500.0,0.00023835,6]
[346087281,1734696652587,-624.6,0.00023835,6]
[346087282,1734696652598,-1066.62,0.00023835,6]
[346087283,1734696652609,-500.0,0.00023835,6]
[346087284,1734696652618,-500.0,0.00023835,6]
[346087285,1734696652627,-184.37145301,0.00023835,6]
[346087286,1734696652636,-500.0,0.00023835,6]
[346087287,1734696652646,-500.0,0.00023835,6]
[346087288,1734696652655,-500.0,0.00023835,6]
[346087289,1734696652664,-500.0,0.00023835,6]
[346087290,1734696652674,-573.48,0.00023835,6]
[346087291,1734696652683,-594.63,0.00023835,6]
[346087292,1734696652692,-1223.06,0.00023835,6]
[346087293,1734696652702,-500.0,0.00023835,6]
[346087294,1734696652711,-862.06,0.00023835,6]
[346087295,1734696652720,-500.0,0.00023835,6]
[346087296,1734696652730,-500.0,0.00023835,6]
[346087297,1734696652739,-500.0,0.00023835,6]
[346087298,1734696652748,-546.13,0.00023835,6]
[346087299,1734696652762,-500.0,0.00023835,6]
[346087300,1734696652771,-173.93534432,0.00023835,6]
[346087301,1734696652781,-527.84,0.00023835,6]
[346087302,1734696652791,-516.81,0.00023835,6]
[346087303,1734696652800,-500.0,0.00023835,6]
[346087304,1734696652809,-500.0,0.00023835,6]
[346087305,1734696652819,-500.0,0.00023835,6]
[346087306,1734696652828,-500.0,0.00023835,6]
[346087307,1734696652837,-941.11,0.00023835,6]
[346087308,1734696652847,-14147.83,0.00023835,6]
[346087309,1734696652857,-953.74,0.00023835,6]
[346087310,1734696652866,-682.29,0.00023835,6]
[346087311,1734696652875,-500.0,0.00023835,6]
[346087312,1734696652885,-5770.18,0.00023835,6]
[346087313,1734696652896,-1060.09,0.00023835,6]
[346087314,1734696652906,-573.88,0.00023835,6]
[346087315,1734696652915,-6762.45,0.00023835,6]
[346087316,1734696652923,-4797.48,0.00023835,6]
[346087317,1734696652933,-924.05,0.00023835,6]
[346087318,1734696652943,-500.0,0.00023835,6]
[346087319,1734696652953,-870.44,0.00023835,6]
[346087320,1734696652962,-3409.0,0.00023835,6]
[346087321,1734696652971,-898.75,0.00023835,6]
[346087322,1734696652980,-162.21694767,0.00023835,6]
[346087323,1734696652990,-500.0,0.00023835,6]
[346087324,1734696653002,-566.16,0.00023835,6]
[346087325,1734696653012,-500.0,0.00023835,6]
[346087326,1734696653021,-500.0,0.00023835,6]
[346087327,1734696653030,-1864.08,0.00023835,6]
[346087328,1734696653039,-500.0,0.00023835,6]
[346087329,1734696653048,-761.76,0.00023835,6]
[346087330,1734696653057,-500.0,0.00023835,6]
[346087331,1734696653067,-500.0,0.00023835,6]
[346087332,1734696653076,-1471.1,0.00023835,2]
[346087333,1734696653086,-500.0,0.00023835,6]
[346087334,1734696653095,-500.0,0.00023835,6]
[346087335,1734696653104,-500.0,0.00023835,6]
[346087336,1734696653114,-814.54,0.00023835,6]
[346087337,1734696653143,-746.22,0.00023835,6]
[346087338,1734696653153,-1421.1,0.00023835,6]
[346087339,1734696653162,-218.39620812,0.00023835,6]
[346087340,1734696653171,-500.0,0.00023835,6]
[346087341,1734696653181,-1161.42,0.00023835,6]
[346087342,1734696653190,-532.95,0.00023835,6]
[346087343,1734696653199,-921.31,0.00023835,6]
[346087344,1734696653208,-1840.22,0.00023835,6]
[346087345,1734696653218,-500.0,0.00023835,6]
[346087346,1734696653227,-500.0,0.00023835,6]
[346087347,1734696653236,-2044.55,0.00023835,6]
[346087348,1734696653246,-500.0,0.00023835,6]
[346087349,1734696653258,-500.0,0.00023835,6]
[346087350,1734696653268,-500.0,0.00023835,6]
[346087351,1734696653277,-856.97,0.00023835,6]
[346087352,1734696653287,-2432.22,0.00023835,6]
[346087353,1734696653296,-500.0,0.00023835,6]
[346087354,1734696653306,-500.0,0.00023835,6]
[346087355,1734696653315,-500.0,0.00023835,6]
[346087356,1734696653325,-3509.96,0.00023835,6]
[346087357,1734696653334,-500.0,0.00023835,6]
[346087358,1734696653343,-974.17,0.00023835,6]
[346087359,1734696653352,-500.0,0.00023835,6]
[346087360,1734696653361,-297.26927144,0.00023941,2]
[346087361,1734696653370,-500.0,0.00024109,6]
[346087362,1734696653379,-500.0,0.00024109,6]
[346087363,1734696653389,-500.0,0.00024109,6]
[346087364,1734696653398,-311.53672645,0.00024109,6]
[346087365,1734696653407,-850.23,0.00024109,6]
[346087366,1734696653416,-500.0,0.00024109,6]
[346087367,1734696653425,-500.0,0.00024109,6]
[346087368,1734696653434,-624.6,0.00024109,6]
[346087369,1734696653443,-1066.62,0.00024109,6]
[346087370,1734696653452,-500.0,0.00024109,6]
[346087371,1734696653461,-500.0,0.00024109,6]
[346087372,1734696653470,-500.0,0.00024109,6]
[346087373,1734696653479,-500.0,0.00024109,6]
[346087374,1734696653488,-500.0,0.00024109,6]
[346087375,1734696653497,-500.0,0.00024109,6]
[346087376,1734696653510,-573.48,0.00024109,6]
[346087377,1734696653519,-594.63,0.00024109,6]
[346087378,1734696653528,-1223.06,0.00024109,6]
[346087379,1734696653537,-500.0,0.00024109,6]
[346087380,1734696653546,-862.06,0.00024109,6]
[346087381,1734696653555,-500.0,0.00024109,6]
[346087382,1734696653565,-500.0,0.00024109,6]
[346087383,1734696653575,-500.0,0.00024109,6]
[346087384,1734696653592,-546.13,0.00024109,6]
[346087385,1734696653601,-500.0,0.00024109,6]
[346087386,1734696653610,-527.84,0.00024109,6]
[346087387,1734696653619,-516.81,0.00024109,6]
[346087388,1734696653629,-500.0,0.00024109,6]
[346087389,1734696653638,-500.0,0.00024109,6]
[346087390,1734696653647,-500.0,0.00024109,6]
[346087391,1734696653656,-500.0,0.00024109,6]
[346087392,1734696653665,-941.11,0.00024109,6]
[346087393,1734696653674,-14147.83,0.00024109,6]
[346087394,1734696653685,-953.74,0.00024109,6]
[346087395,1734696653694,-682.29,0.00024109,6]
[346087396,1734696653703,-500.0,0.00024109,6]
[346087397,1734696653712,-5770.18,0.00024109,6]
[346087398,1734696653721,-1060.09,0.00024109,6]
[346087399,1734696653730,-573.88,0.00024109,6]
[346087400,1734696653739,-6762.45,0.00024109,6]
[346087401,1734696653749,-4797.48,0.00024109,6]
[346087402,1734696653760,-924.05,0.00024109,6]
[346087403,1734696653770,-500.0,0.00024109,6]
[346087404,1734696653779,-870.44,0.00024109,6]
[346087405,1734696653789,-3409.0,0.00024109,6]
[346087406,1734696653798,-898.75,0.00024109,6]
[346087407,1734696653807,-566.16,0.00024109,6]
[346087408,1734696653817,-500.0,0.00024109,6]
[346087409,1734696653827,-500.0,0.00024109,6]
[346087410,1734696653836,-500.0,0.00024109,6]
[346087411,1734696653846,-1864.08,0.00024109,6]
[346087412,1734696653855,-500.0,0.00024109,6]
[346087413,1734696653865,-761.76,0.00024109,6]
[346087414,1734696653875,-500.0,0.00024109,6]
[346087415,1734696653884,-500.0,0.00024109,6]
[346087416,1734696653895,-1471.1,0.00024109,2]
[346087417,1734696653905,-500.0,0.00024109,6]
[346087418,1734696653915,-191.08709883,0.00024109,6]
[346087419,1734696653924,-500.0,0.00024109,6]
[346087420,1734696653934,-814.54,0.00024109,6]
[346087421,1734696653944,-746.22,0.00024109,6]
[346087422,1734696653953,-1421.1,0.00024109,6]
[346087423,1734696653962,-500.0,0.00024109,6]
[346087424,1734696653972,-1161.42,0.00024109,6]
[346087425,1734696653981,-532.95,0.00024109,6]
[346087426,1734696653990,-921.31,0.00024109,6]
[346087427,1734696654000,-1840.22,0.00024109,6]
[346087428,1734696654012,-500.0,0.00024109,6]
[346087429,1734696654022,-500.0,0.00024109,6]
[346087430,1734696654032,-2044.55,0.00024109,6]
[346087431,1734696654041,-500.0,0.00024109,6]
[346087432,1734696654051,-500.0,0.00024109,6]
[346087433,1734696654060,-500.0,0.00024109,6]
[346087434,1734696654070,-856.97,0.00024109,6]
[346087435,1734696654079,-2432.22,0.00024109,6]
[346087436,1734696654089,-500.0,0.00024109,6]
[346087437,1734696654100,-500.0,0.00024109,6]
[346087438,1734696654109,-500.0,0.00024109,6]
[346087439,1734696654119,-3509.96,0.00024109,6]
[346087440,1734696654129,-500.0,0.00024109,6]
[346087441,1734696654139,-974.17,0.00024109,6]
[346087442,1734696654148,-1500.0,0.00024273,2]
[346087443,1734696654159,-1500.0,0.00024275,2]
[346087444,1734696654168,-587.0,0.00024363,2]
[346087445,1734696654178,-500.0,0.00024383,6]
[346087446,1734696654188,-500.0,0.00024383,6]
[346087447,1734696654198,-500.0,0.00024383,6]
[346087448,1734696654207,-850.23,0.00024383,6]
[346087449,1734696654217,-500.0,0.00024383,6]
[346087450,1734696654227,-500.0,0.00024383,6]
[346087451,1734696654236,-624.6,0.00024383,6]
[346087452,1734696654246,-1066.62,0.00024383,6]
[346087453,1734696654260,-500.0,0.00024383,6]
[346087454,1734696654270,-500.0,0.00024383,6]
[346087455,1734696654279,-500.0,0.00024383,6]
[346087456,1734696654289,-500.0,0.00024383,6]
[346087457,1734696654298,-500.0,0.00024383,6]
[346087458,1734696654308,-500.0,0.00024383,6]
[346087459,1734696654318,-573.48,0.00024383,6]
[346087460,1734696654329,-594.63,0.00024383,6]
[346087461,1734696654339,-1223.06,0.00024383,6]
[346087462,1734696654350,-500.0,0.00024383,6]
[346087463,1734696654359,-862.06,0.00024383,6]
[346087464,1734696654368,-500.0,0.00024383,6]
[346087465,1734696654378,-500.0,0.00024383,6]
[346087466,1734696654388,-500.0,0.00024383,6]
[346087467,1734696654398,-546.13,0.00024383,6]
[346087468,1734696654407,-500.0,0.00024383,6]
[346087469,1734696654417,-527.84,0.00024383,6]
[346087470,1734696654427,-516.81,0.00024383,6]
[346087471,1734696654436,-500.0,0.00024383,6]
[346087472,1734696654446,-500.0,0.00024383,6]
[346087473,1734696654455,-254.31098713,0.00024383,6]
[346087474,1734696654465,-500.0,0.00024383,6]
[346087475,1734696654475,-941.11,0.00024383,6]
[346087476,1734696654485,-14147.83,0.00024383,6]
[346087477,1734696654495,-953.74,0.00024383,6]
[346087478,1734696654508,-682.29,0.00024383,6]
[346087479,1734696654518,-500.0,0.00024383,6]
[346087480,1734696654529,-5770.18,0.00024383,6]
[346087481,1734696654539,-1060.09,0.00024383,6]
[346087482,1734696654549,-573.88,0.00024383,6]
[346087483,1734696654560,-6762.45,0.00024383,6]
[346087484,1734696654569,-4797.48,0.00024383,6]
[346087485,1734696654580,-924.05,0.00024383,6]
[346087486,1734696654590,-308.26052343,0.00024383,6]
[346087487,1734696654600,-870.44,0.00024383,6]
[346087488,1734696654612,-3409.0,0.00024383,6]
[346087489,1734696654623,-898.75,0.00024383,6]
[346087490,1734696654632,-566.16,0.00024383,6]
[346087491,1734696654643,-500.0,0.00024383,6]
[346087492,1734696654652,-500.0,0.00024383,6]
[346087493,1734696654661,-500.0,0.00024383,6]
[346087494,1734696654671,-1864.08,0.00024383,6]
[346087495,1734696654681,-500.0,0.00024383,6]
[346087496,1734696654690,-761.76,0.00024383,6]
[346087497,1734696654699,-500.0,0.00024383,6]
[346087498,1734696654709,-500.0,0.00024383,6]
[346087499,1734696654721,-1471.1,0.00024383,2]
[346087500,1734696654731,-500.0,0.00024383,6]
[346087501,1734696654741,-500.0,0.00024383,6]
[346087502,1734696654751,-814.54,0.00024383,6]
[346087503,1734696654761,-746.22,0.00024383,6]
[346087504,1734696654771,-1421.1,0.00024383,6]
[346087505,1734696654781,-500.0,0.00024383,6]
[346087506,1734696654792,-1161.42,0.00024383,6]
[346087507,1734696654804,-532.95,0.00024383,6]
[346087508,1734696654813,-921.31,0.00024383,6]
[346087509,1734696654823,-1840.22,0.00024383,6]
[346087510,1734696654834,-500.0,0.00024383,6]
[346087511,1734696654844,-500.0,0.00024383,6]
[346087512,1734696654853,-2044.55,0.00024383,6]
[346087513,1734696654863,-500.0,0.00024383,6]
[346087514,1734696654872,-500.0,0.00024383,6]
[346087515,1734696654882,-500.0,0.00024383,6]
[346087516,1734696654892,-856.97,0.00024383,6]
[346087517,1734696654901,-2432.22,0.00024383,6]
[346087518,1734696654911,-500.0,0.00024383,6]
[346087519,1734696654920,-500.0,0.00024383,6]
[346087520,1734696654930,-219.51445398,0.00024383,6]
[346087521,1734696654940,-3509.96,0.00024383,6]
[346087522,1734696654950,-500.0,0.00024383,6]
[346087523,1734696654959,-974.17,0.00024383,6]
[346087524,1734696654969,-151.0,0.000244,7]
[346087525,1734696654979,-153.0,0.00024434,2]
[346087526,1734696654988,-10305.20533882,0.00024458,2]
[346087527,1734696654998,-230.0,0.0002448,13]
[346087528,1734696655010,-297.26927144,0.00024557,2]
[346087529,1734696655021,-2000.0,0.000246,2]
[346087530,1734696655031,-500.0,0.00024657,6]
[346087531,1734696655041,-500.0,0.00024657,6]
[346087532,1734696655050,-218.81531449,0.00024657,6]
[346087533,1734696655060,-850.23,0.00024657,6]
[346087534,1734696655070,-545.8500449,0.00024657,6]
[346087535,1734696655080,-500.0,0.00024657,6]
[346087536,1734696655090,-624.6,0.00024657,6]
[346087537,1734696655100,-1066.62,0.00024657,6]
[346087538,1734696655110,-500.0,0.00024657,6]
[346087539,1734696655119,-500.0,0.00024657,6]
[346087540,1734696655129,-500.0,0.00024657,6]
[346087541,1734696655139,-500.0,0.00024657,6]
[346087542,1734696655148,-500.0,0.00024657,6]
[346087543,1734696655158,-500.0,0.00024657,6]
[346087544,1734696655168,-573.48,0.00024657,6]
[346087545,1734696655178,-594.63,0.00024657,6]
[346087546,1734696655187,-1223.06,0.00024657,6]
[346087547,1734696655197,-500.0,0.00024657,6]
[346087548,1734696655207,-862.06,0.00024657,6]
[346087549,1734696655217,-500.0,0.00024657,6]
[346087550,1734696655227,-500.0,0.00024657,6]
[346087551,1734696655236,-500.0,0.00024657,6]
[346087552,1734696655246,-546.13,0.00024657,6]
[346087553,1734696655259,-500.0,0.00024657,6]
[346087554,1734696655269,-527.84,0.00024657,6]
[346087555,1734696655279,-516.81,0.00024657,6]
[346087556,1734696655288,-500.0,0.00024657,6]
[346087557,1734696655298,-500.0,0.00024657,6]
[346087558,1734696655308,-500.0,0.00024657,6]
[346087559,1734696655318,-941.11,0.00024657,6]
[346087560,1734696655328,-14147.83,0.00024657,6]
[346087561,1734696655339,-953.74,0.00024657,6]
[346087562,1734696655348,-682.29,0.00024657,6]
[346087563,1734696655359,-646.03848975,0.00024657,6]
[346087564,1734696655370,-5770.18,0.00024657,6]
[346087565,1734696655380,-1060.09,0.00024657,6]
[346087566,1734696655390,-573.88,0.00024657,6]
[346087567,1734696655399,-6762.45,0.00024657,6]
[346087568,1734696655409,-4797.48,0.00024657,6]
[346087569,1734696655419,-924.05,0.00024657,6]
[346087570,1734696655429,-870.44,0.00024657,6]
[346087571,1734696655439,-3409.0,0.00024657,6]
[346087572,1734696655448,-898.75,0.00024657,6]
[346087573,1734696655458,-566.16,0.00024657,6]
[346087574,1734696655468,-500.0,0.00024657,6]
[346087575,1734696655478,-500.0,0.00024657,6]
[346087576,1734696655487,-500.0,0.00024657,6]
[346087577,1734696655497,-1864.08,0.00024657,6]
[346087578,1734696655514,-500.0,0.00024657,6]
[346087579,1734696655524,-761.76,0.00024657,6]
[346087580,1734696655534,-500.0,0.00024657,6]
[346087581,1734696655544,-639.32691636,0.00024657,6]
[346087582,1734696655554,-1471.1,0.00024657,2]
[346087583,1734696655565,-500.0,0.00024657,6]
[346087584,1734696655575,-2138.29,0.00024657,6]
[346087585,1734696655588,-500.0,0.00024657,6]
[346087586,1734696655598,-814.54,0.00024657,6]
[346087587,1734696655608,-746.22,0.00024657,6]
[346087588,1734696655619,-1421.1,0.00024657,6]
[346087589,1734696655630,-500.0,0.00024657,6]
[346087590,1734696655640,-1161.42,0.00024657,6]
[346087591,1734696655651,-532.95,0.00024657,6]
[346087592,1734696655661,-921.31,0.00024657,6]
[346087593,1734696655671,-1840.22,0.00024657,6]
[346087594,1734696655681,-500.0,0.00024657,6]
[346087595,1734696655691,-500.0,0.00024657,6]
[346087596,1734696655700,-2044.55,0.00024657,6]
[346087597,1734696655710,-500.0,0.00024657,6]
[346087598,1734696655720,-500.0,0.00024657,6]
[346087599,1734696655731,-464.32708988,0.00024657,6]
[346087601,1734696655740,-1092.83,0.00024657,11]
[346087602,1734696655754,-350.0,0.00024657,2]
[346087603,1734696655764,-350.0,0.00024657,2]
[346087605,1734696655776,-350.0,0.00024657,2]
[346087606,1734696655788,-350.0,0.00024657,2]
[346087607,1734696655798,-350.0,0.00024657,2]
[346087609,1734696655810,-856.97,0.00024657,6]
[346087610,1734696655823,-350.0,0.00024657,2]
[346087611,1734696655833,-350.0,0.00024657,2]
[346087612,1734696655844,-350.0,0.00024657,2]
[346087613,1734696655853,-350.0,0.00024657,2]
[346087614,1734696655864,-2432.22,0.00024657,6]
[346087615,1734696655875,-350.0,0.00024657,2]
[346087616,1734696655886,-350.0,0.00024657,2]
[346087617,1734696655897,-500.0,0.00024657,6]
[346087618,1734696655907,-500.0,0.00024657,6]
[346087619,1734696655917,-3509.96,0.00024657,6]
[346087620,1734696655928,-500.0,0.00024657,6]
[346087621,1734696655938,-974.17,0.00024657,6]
[346087622,1734696655947,-380.0,0.00024658,2]
[346087623,1734696655957,-151.0,0.00024669,7]
[346087624,1734696655967,-151.0,0.00024669,7]
[346087625,1734696655977,-151.0,0.00024669,7]
[346087626,1734696655987,-154.956765,0.00024669,7]
[346087627,1734696655998,-500.0,0.00024669,10]
[346087628,1734696656014,-5164.75756255,0.00024669,7]
[346087629,1734696656028,-21159.15,0.000247,2]
[346087630,1734696656039,-3217.01,0.000247,14]
[346087631,1734696656049,-2000.0,0.000247,2]
[346087632,1734696656059,-151.0,0.00024704,2]
[346087633,1734696656070,-151.0,0.00024705,7]
[346087634,1734696656081,-5098.20967376,0.00024712,2]
[346087636,1734696656279,-184.0,0.000248,18]
[346087637,1734696656296,-3666.8899,0.000248,15]
[346087638,1734696656307,-86597.73798494,0.00024812,2]
[346087639,1734696656316,-5665.97558166,0.00024812,2]
[346087640,1734696656326,-5164.75756255,0.00024812,7]
[346087641,1734696656336,-5867313.8912896,0.00024812,10]
[346087642,1734696656346,-282342.43919706,0.00024812,10]
[346087643,1734696656356,-269696.06872096,0.00024812,10]
[346087644,1734696656366,-2660723.09116161,0.00024812,10]
[346087645,1734696656376,-600505.79293425,0.00024812,10]
[346087646,1734696656910,-45.71714938,0.00021917,6]
[346087647,1734696656922,-454.28285062,0.00021917,6]
[346087648,1734696656931,-500.0,0.00021917,6]
[346087649,1734696656941,-278.29,0.00022191,6]
[346087650,1734696656951,-500.0,0.00022191,6]
[346087651,1734696656962,-508.98,0.00022465,6]
[346087652,1734696656972,-500.0,0.00022465,6]
[346087653,1734696656982,-508.98,0.00022739,6]
[346087654,1734696656992,-500.0,0.00022739,6]
[346087655,1734696657007,-508.98,0.00023013,6]
[346087656,1734696657017,-113.53131584,0.00023013,6]
[346087657,1734696657030,-386.46868416,0.00023013,6]
[346087658,1734696657040,-508.98,0.00023287,6]
[346087659,1734696657050,-32.87550092,0.00023287,6]
[346087743,1734696822913,189.412913,0.00013973,2]
[346087751,1734696943980,4009.0,0.00024,60]
[346087757,1734697227390,10000.0,0.000172,2]
[346087758,1734697309579,5024.45880147,0.000172,2]
[346087759,1734697309620,241.99119853,0.000172,2]
[346087898,1734697541116,-152.23576209,0.00018543,2]
[346087903,1734697638316,-170.66467929,0.00018543,2]
[346087904,1734697643092,-197.87076,0.00018358,2]
[346087905,1734697649129,-171.41167551,0.00018358,2]
[346087908,1734697695280,188.095902,0.00013973,2]
[346087919,1734697730901,345.46,0.00016,10]
[346087920,1734697745147,-4677.09955862,0.00018174,2]
[346087921,1734697745170,-4630.71756449,0.00018358,2]
[346087922,1734697745197,-300.0,0.00019652,2]
[346087923,1734697745220,-300.0,0.00019652,2]
[346087924,1734697745245,-958.6266498,0.00019653,2]
[346087925,1734697745267,-175.056892,0.00019695,2]
[346087926,1734697755646,290.68033509,0.00019852,2]
[346087927,1734697755668,108.63156021,0.00019852,2]
[346087928,1734697764096,-174.82,0.00020049,11]
[346087929,1734697764119,-217.6609232,0.00020052,2]
[346087930,1734697764141,-95.34826596,0.00020163,2]
[346087931,1734697765111,-164.51755104,0.00020163,2]
[346088138,1734697836876,-188.095902,0.00020447,2]
[346088139,1734697836886,-4975.31969267,0.00020506,2]
[346088140,1734697836895,-300.0,0.00020999,2]
[346088141,1734697836904,-12181.40017712,0.00021,7]
[346088142,1734697836914,-2114.45828166,0.00021,2]
[346088143,1734697836923,-226.055,0.00021664,2]
[346088144,1734697836932,-29994.99999909,0.00021717,2]